fUSD/lending_fUSD_20251222
["ID","MTS","AMOUNT","RATE_DAILY","PERIOD"]
[399516221,1766425843861,-1358.3835,0.000169,2]
[399516222,1766425843871,-1000.0,0.000169,2]
[399516223,1766425843880,-221.8414435,0.000169,2]
[399516224,1766425843890,-7420.9679714,0.000169,2]
[399516225,1766425843900,-211.71595033,0.000169,2]
[399516226,1766425843909,-4128.51251646,0.000169,2]
[399516227,1766425843919,-255.90756668,0.000169,2]
[399516228,1766425843929,-1237.05307485,0.000169,2]
[399516229,1766425843939,-500.0,0.000169,2]
[399516230,1766425843950,-500.0,0.000169,2]
[399516231,1766425843959,-500.0,0.000169,2]
[399516232,1766425843969,-500.0,0.000169,2]
[399516233,1766425843978,-500.0,0.000169,2]
[399516234,1766425843987,-500.0,0.000169,2]
[399516235,1766425843997,-500.0,0.000169,2]
[399516236,1766425844006,-500.0,0.000169,2]
[399516237,1766425844016,-500.0,0.000169,2]
[399516238,1766425844025,-500.0,0.000169,2]
[399516239,1766425844035,-500.0,0.000169,2]
[399516240,1766425844044,-500.0,0.000169,2]
[399516241,1766425844053,-500.0,0.000169,2]
[399516242,1766425844063,-500.0,0.000169,2]
[399516243,1766425844074,-500.0,0.000169,2]
[399516244,1766425844083,-500.0,0.000169,2]
[399516245,1766425844092,-500.0,0.000169,2]
[399516246,1766425844102,-500.0,0.000169,2]
[399516247,1766425844111,-500.0,0.000169,2]
[399516248,1766425844121,-500.0,0.000169,2]
[399516249,1766425844130,-500.0,0.000169,2]
[399516250,1766425844139,-500.0,0.000169,2]
[399516251,1766425844149,-500.0,0.000169,2]
[399516252,1766425844159,-500.0,0.000169,2]
[399516253,1766425844169,-500.0,0.000169,2]
[399516254,1766425844178,-415.66004447,0.000169,2]
[399516255,1766425844187,-9598.0,0.000169,2]
[399516256,1766425844200,-500.0,0.00016918,2]
[399516257,1766425844209,-262.0,0.00016921,2]
[399516258,1766425844219,-10000.01,0.00016922,2]
[399516259,1766425844229,-500.0,0.00016945,2]
[399516260,1766425844240,-200.0,0.00016945,2]
[399516261,1766425844250,-200.0,0.00016945,2]
[399516262,1766425844259,-505.01496115,0.00016946,2]
[399516263,1766425844269,-234.0,0.00016969,2]
[399516264,1766425844278,-500.0,0.00016973,2]
[399516265,1766425844288,-500.0,0.00016973,2]
[399516266,1766425844298,-187.58612974,0.00016973,2]
[399516267,1766425844308,-500.0,0.00016973,2]
[399516268,1766425844317,-500.0,0.00016973,2]
[399516269,1766425844327,-189.51040259,0.00016973,2]
[399516270,1766425844336,-500.0,0.00016973,2]
[399516271,1766425844345,-500.0,0.00016973,2]
[399516272,1766425844355,-500.0,0.00016973,2]
[399516273,1766425844364,-500.0,0.00016973,2]
[399516274,1766425844373,-500.0,0.00016973,2]
[399516275,1766425844383,-500.0,0.00016973,2]
[399516276,1766425844392,-500.0,0.00016973,2]
[399516277,1766425844401,-500.0,0.00016973,2]
[399516278,1766425844411,-500.0,0.00016973,2]
[399516279,1766425844421,-500.0,0.00016973,2]
[399516280,1766425844431,-500.0,0.00016973,2]
[399516281,1766425844441,-500.0,0.00016973,2]
[399516282,1766425844450,-500.0,0.00016973,2]
[399516283,1766425844460,-500.0,0.00016973,2]
[399516284,1766425844473,-500.0,0.00016973,2]
[399516285,1766425844482,-500.0,0.00016973,2]
[399516286,1766425844492,-500.0,0.00016973,2]
[399516287,1766425844502,-500.0,0.00016973,2]
[399516288,1766425844511,-500.0,0.00016973,2]
[399516289,1766425844521,-500.0,0.00016973,2]
[399516290,1766425844530,-500.0,0.00016973,2]
[399516291,1766425844539,-500.0,0.00016973,2]
[399516292,1766425844549,-500.0,0.00016973,2]
[399516293,1766425844558,-500.0,0.00016973,2]
[399516294,1766425844567,-500.0,0.00016973,2]
[399516295,1766425844576,-500.0,0.00016973,2]
[399516296,1766425844586,-523.16788729,0.00016973,2]
[399516297,1766425844596,-500.0,0.00016973,2]
[399516298,1766425844606,-500.0,0.00016973,2]
[399516299,1766425844616,-516.53532775,0.00016973,2]
[399516300,1766425844626,-500.0,0.00016973,2]
[399516301,1766425844635,-169.31135743,0.00016973,2]
[399516302,1766425844645,-500.0,0.00016973,2]
[399516303,1766425844655,-500.0,0.00016973,2]
[399516304,1766425844664,-2434.6590644,0.00016973,2]
[399516305,1766425844674,-51662.616385,0.00016973,2]
[399516306,1766425844684,-150.0,0.00016973,2]
[399516307,1766425844693,-1165.0939614,0.00016975,2]
[399516308,1766425844703,-500.0,0.00016984,2]
[399516309,1766425844712,-558.96,0.00016985,2]
[399516310,1766425844722,-500.0,0.00016985,2]
[399516311,1766425844731,-522.793359,0.00016985,2]
[399516312,1766425844741,-1795.4,0.00016986,2]
[399516313,1766425844750,-511.74808799,0.00016986,2]
[399516314,1766425844760,-547.3467704,0.00016986,2]
[399516315,1766425844770,-500.0,0.00016986,2]
[399516316,1766425844779,-600.0,0.00016986,2]
[399516317,1766425844789,-52648.51,0.00016986,2]
[399516318,1766425844798,-558.96,0.00016998,2]
[399516319,1766425844809,-500.0,0.00016998,2]
[399516320,1766425844820,-1945.5591862,0.00016999,2]
[399516321,1766425844830,-2628.4243331,0.00016999,2]
[399516322,1766425844840,-558.96,0.00016999,2]
[399516323,1766425844850,-558.96,0.00016999,2]
[399516324,1766425844860,-558.96,0.00016999,2]
[399516325,1766425844869,-558.96,0.00016999,2]
[399516326,1766425844879,-558.96,0.00016999,2]
[399516327,1766425844889,-558.96,0.00016999,2]
[399516328,1766425844899,-558.96,0.00016999,2]
[399516329,1766425844912,-558.96,0.00016999,2]
[399516330,1766425844922,-558.96,0.00016999,2]
[399516331,1766425844931,-558.96,0.00016999,2]
[399516332,1766425844941,-558.96,0.00016999,2]
[399516333,1766425844950,-558.96,0.00016999,2]
[399516334,1766425844960,-558.96,0.00016999,2]
[399516335,1766425844970,-558.96,0.00016999,2]
[399516336,1766425844979,-558.96,0.00016999,2]
[399516337,1766425844988,-558.96,0.00016999,2]
[399516338,1766425844997,-558.96,0.00016999,2]
[399516339,1766425845007,-558.96,0.00016999,2]
[399516340,1766425845016,-558.96,0.00016999,2]
[399516341,1766425845026,-559.16739405,0.00016999,2]
[399516342,1766425845036,-500.0,0.00016999,2]
[399516343,1766425845047,-500.0,0.00016999,2]
[399516344,1766425845057,-500.0,0.00016999,2]
[399516345,1766425845067,-500.0,0.00016999,2]
[399516346,1766425845076,-500.0,0.00016999,2]
[399516347,1766425845086,-508.36812857,0.00016999,2]
[399516348,1766425845096,-500.0,0.00016999,2]
[399516349,1766425845105,-500.0,0.00016999,2]
[399516350,1766425845115,-500.0,0.00016999,2]
[399516351,1766425845125,-500.0,0.00016999,2]
[399516352,1766425845135,-500.0,0.00016999,2]
[399516353,1766425845144,-508.14814092,0.00016999,2]
[399516354,1766425845153,-500.0,0.00016999,2]
[399516355,1766425845163,-436.38149996,0.00016999,2]
[399516356,1766425845173,-518.50192951,0.00016999,2]
[399516357,1766425845183,-4321179.09426813,0.00017,2]
[399516358,1766425845193,-314.95350618,0.00017,2]
[399516359,1766425845207,-151.0,0.00017,2]
[399516360,1766425845216,-2000.0,0.00017,2]
[399516361,1766425845226,-250.0,0.00017,2]
[399516362,1766425845236,-211.45726053,0.00017,2]
[399516363,1766425845246,-241.66544061,0.00017,2]
[399516364,1766425845256,-377.22464869,0.00017,2]
[399516365,1766425845266,-7000.0,0.00017,2]
[399516366,1766425845276,-262.0,0.00017005,2]
[399516367,1766425845286,-168.0,0.00017027,2]
[399516368,1766425845297,-493.0,0.00017042,2]
[399516369,1766425845307,-493.0,0.0001707,2]
[399516370,1766425845317,-1609.0,0.000171,2]
[399516371,1766425845326,-612.0,0.000171,2]
[399516372,1766425845335,-3457.0,0.000171,2]
[399516373,1766425845344,-1326.0,0.000171,2]
[399516374,1766425845353,-1262.0,0.000171,2]
[399516375,1766425845362,-518.0,0.000171,2]
[399516376,1766425845371,-564.0,0.000171,2]
[399516377,1766425845381,-6530.0,0.000171,2]
[399516378,1766425845390,-2429.0,0.000171,2]
[399516379,1766425845399,-297.0,0.00017156,2]
[399516380,1766425845408,-262.0,0.00017177,2]
[399516381,1766425845417,-168.0,0.00017185,2]
[399516382,1766425845426,-493.0,0.00017197,2]
[399516383,1766425845435,-1000.0,0.000172,2]
[399516384,1766425845444,-151.0,0.00017245,2]
[399516385,1766425845453,-617.40005154,0.00017245,2]
[399516386,1766425845462,-225.18697532,0.00017245,2]
[399516387,1766425845471,-151.0,0.00017245,2]
[399516388,1766425845480,-1795.4,0.0001726,2]
[399516389,1766425845489,-493.0,0.0001726,2]
[399516390,1766425845498,-263.99,0.00017269,2]
[399516391,1766425845507,-493.0,0.00017299,2]
[399516392,1766425845516,-1859.0,0.00017375,2]
[399516393,1766425845526,-1000.0,0.000174,2]
[399516394,1766425845535,-493.0,0.00017441,2]
[399516395,1766425845544,-1734.08,0.00017443,2]
[399516396,1766425845554,-168.27,0.00017445,2]
[399516397,1766425845563,-493.0,0.00017453,2]
[399516398,1766425845572,-166.67,0.00017478,2]
[399516399,1766425845581,-500.0,0.00017493,2]
[399516400,1766425845591,-200.0,0.00017493,2]
[399516401,1766425845600,-200.0,0.00017493,2]
[399516402,1766425845609,-185.08,0.00017505,2]
[399516403,1766425845618,-493.0,0.00017516,2]
[399516404,1766425845702,-151.0,0.00017518,2]
[399516405,1766425845712,-334.5472959,0.00017518,2]
[399516406,1766425845722,-1000.0,0.00017521,2]
[399516407,1766425845731,-1058.66625323,0.00017521,2]
[399516408,1766425845741,-1000.0,0.00017521,2]
[399516409,1766425845750,-500.0,0.00017521,2]
[399516410,1766425845760,-1147.78915262,0.00017521,2]
[399516411,1766425845769,-1000.0,0.00017521,2]
[399516412,1766425845779,-514.96485499,0.00017521,2]
[399516413,1766425845788,-912.15170783,0.00017521,2]
[399516414,1766425845798,-1000.0,0.00017521,2]
[399516415,1766425845807,-367.4376246,0.00017521,2]
[399516416,1766425845816,-1000.0,0.00017521,2]
[399516417,1766425845825,-1000.0,0.00017521,2]
[399516418,1766425845834,-1000.0,0.00017521,2]
[399516419,1766425845844,-1000.0,0.00017521,2]
[399516420,1766425845853,-1097.90123156,0.00017521,2]
[399516421,1766425845863,-1000.0,0.00017521,2]
[399516422,1766425845872,-848.47056686,0.00017521,2]
[399516423,1766425845882,-1000.0,0.00017521,2]
[399516424,1766425845891,-1000.0,0.00017521,2]
[399516425,1766425845900,-1000.0,0.00017521,2]
[399516426,1766425845910,-1000.0,0.00017521,2]
[399516427,1766425845919,-1000.0,0.00017521,2]
[399516428,1766425845928,-1000.0,0.00017521,2]
[399516429,1766425845938,-1000.0,0.00017521,2]
[399516430,1766425845947,-1000.0,0.00017521,2]
[399516432,1766425845957,-1000.0,0.00017521,2]
[399516434,1766425845966,-1000.0,0.00017521,2]
[399516436,1766425845976,-1000.0,0.00017521,2]
[399516438,1766425845986,-1000.0,0.00017521,2]
[399516440,1766425845995,-1000.0,0.00017521,2]
[399516442,1766425846004,-1000.0,0.00017521,2]
[399516444,1766425846014,-1000.0,0.00017521,2]
[399516446,1766425846023,-207.06138535,0.00017521,2]
[399516448,1766425846033,-1000.0,0.00017521,2]
[399516450,1766425846043,-1795.4,0.00017534,2]
[399516451,1766425846053,-600.0,0.00017534,2]
[399516452,1766425846063,-807.25325449,0.00017534,2]
[399516453,1766425846072,-158.9,0.00017632,2]
[399516454,1766425846081,-881.09,0.00017635,2]
[399516455,1766425846091,-166.66,0.00017647,2]
[399516456,1766425846100,-493.0,0.00017778,2]
[399516457,1766425846109,-159.11222724,0.00017793,2]
[399516460,1766425846118,-640.24385345,0.00017793,2]
[399516462,1766425846127,-233.51889341,0.00017793,2]
[399516464,1766425846136,-151.0,0.00017793,2]
[399516466,1766425846145,-1795.4,0.00017808,2]
[399516468,1766425846154,-1087.13292197,0.00017816,2]
[399516469,1766425846163,-263.99,0.0001796,2]
[399516470,1766425846172,-209.45677973,0.00017973,2]
[399516471,1766425846181,-493.0,0.0001798,2]
[399516472,1766425846191,-300.0,0.00017999,2]
[399516473,1766425846203,-666.0,0.00017999,2]
[399516474,1766425846212,-300.0,0.00017999,2]
[399516475,1766425846221,-300.0,0.00017999,2]
[399516476,1766425846230,-423.34883705,0.00017999,2]
[399516477,1766425846239,-666.0,0.00017999,2]
[399516478,1766425846248,-300.0,0.00017999,2]
[399516479,1766425846257,-615616.161847,0.00018,2]
[399516480,1766425846267,-60476.95558364,0.00018,7]
[399516481,1766425846278,-150.0,0.00018,2]
[399516482,1766425846287,-150.0,0.00018,2]
[399516483,1766425846295,-150.0,0.00018,2]
[399516484,1766425846305,-150.0,0.00018,2]
[399516485,1766425846315,-150.0,0.00018,2]
[399516486,1766425846324,-151.97105388,0.00018,2]
[399516487,1766425846335,-150.0,0.00018,2]
[399516488,1766425846344,-153.06018393,0.00018,2]
[399516489,1766425846353,-150.0,0.00018,2]
[399516490,1766425846362,-398.55544668,0.00018029,2]
[399516491,1766425846371,-500.03707376,0.00018041,2]
[399516492,1766425846381,-200.0,0.00018041,2]
[399516493,1766425846390,-200.0,0.00018041,2]
[399516494,1766425846399,-300.0,0.00018067,2]
[399516495,1766425846408,-666.0,0.00018067,2]
[399516496,1766425846418,-300.0,0.00018067,2]
[399516497,1766425846427,-300.0,0.00018067,2]
[399516498,1766425846436,-666.0,0.00018067,2]
[399516499,1766425846445,-300.0,0.00018067,2]
[399516500,1766425846455,-1500.0,0.00018068,2]
[399516501,1766425846465,-339.26992964,0.00018068,2]
[399516502,1766425846475,-211.14623413,0.00018068,2]
[399516503,1766425846486,-500.0,0.00018068,2]
[399516504,1766425846496,-884.47833139,0.00018068,2]
[399516505,1766425846506,-1001.31913615,0.00018068,2]
[399516506,1766425846516,-1607.40591006,0.00018068,2]
[399516507,1766425846526,-500.0,0.00018068,2]
[399516508,1766425846535,-1500.0,0.00018068,2]
[399516509,1766425846544,-501.39291005,0.00018068,2]
[399516510,1766425846553,-576.64939629,0.00018068,2]
[399516511,1766425846562,-500.2916931,0.00018068,2]
[399516512,1766425846572,-1001.0574546,0.00018068,2]
[399516513,1766425846582,-1500.0,0.00018068,2]
[399516514,1766425846592,-1500.0,0.00018068,2]
[399516515,1766425846601,-1636.7936933,0.00018068,2]
[399516516,1766425846611,-1500.0,0.00018068,2]
[399516518,1766425846619,-1000.0,0.00018068,2]
[399516519,1766425846629,-500.0,0.00018068,2]
[399516520,1766425846638,-501.19540644,0.00018068,2]
[399516521,1766425846647,-898.58667756,0.00018068,2]
[399516522,1766425846656,-1500.0,0.00018068,2]
[399516523,1766425846666,-1120.37233285,0.00018068,2]
[399516524,1766425846675,-1258.12727716,0.00018068,2]
[399516525,1766425846684,-1500.0,0.00018068,2]
[399516526,1766425846693,-1500.0,0.00018068,2]
[399516527,1766425846702,-151.66355271,0.00018072,2]
[399516528,1766425846711,-1795.4,0.00018082,2]
[399516529,1766425846720,-1000.0,0.00018082,2]
[399516530,1766425846729,-600.0,0.00018082,2]
[399516531,1766425846738,-1600.0,0.00018114,2]
[399516532,1766425846747,-150.0,0.00018286,2]
[399516533,1766425846756,-307.49673677,0.00018294,2]
[399516534,1766425846765,-150.0,0.00018333,2]
[399516535,1766425846775,-663.93287602,0.00018341,2]
[399516536,1766425846784,-242.15909246,0.00018341,2]
[399516537,1766425846793,-151.0,0.00018341,2]
[399516538,1766425846802,-168.27,0.00018347,2]
[399516539,1766425846811,-1795.4,0.00018356,2]
[399516540,1766425846821,-185.08,0.00018467,2]
[399516541,1766425846830,-150.0,0.000185,2]
[399516542,1766425846840,-1000.0,0.00018555,2]
[399516543,1766425846849,-150.0,0.00018571,2]
[399516544,1766425846858,-215.0738,0.00018587,2]
[399516545,1766425846867,-200.0,0.00018589,2]
[399516546,1766425846876,-1666.79362099,0.00018616,2]
[399516547,1766425846885,-1941.67060299,0.00018616,2]
[399516548,1766425846894,-2000.0,0.00018616,2]
[399516549,1766425846904,-501.82577211,0.00018616,2]
[399516550,1766425846913,-2000.0,0.00018616,2]
[399516551,1766425846922,-1795.4,0.0001863,2]
[399516552,1766425846931,-600.0,0.0001863,2]
[399516553,1766425846940,-263.99,0.00018651,2]
[399516554,1766425846950,-158.9,0.00018658,2]
[399516555,1766425846960,-150.0,0.00018667,2]
[399516556,1766425846971,-150.0,0.00018667,2]
[399516557,1766425846981,-150.0,0.00018667,2]
[399516558,1766425846992,-1000.0,0.0001876,2]
[399516559,1766425847002,-150.9,0.000188,2]
[399516560,1766425847011,-150.9,0.000188,2]
[399516561,1766425847020,-150.9,0.000188,2]
[399516562,1766425847029,-150.9,0.000188,2]
[399516563,1766425847038,-150.9,0.000188,2]
[399516564,1766425847047,-166.67,0.0001881,2]
[399516565,1766425847056,-150.0,0.00018857,2]
[399516566,1766425847067,-151.0,0.00018887,2]
[399516567,1766425847076,-346.92554585,0.00018887,2]
[399516568,1766425847085,-599.60298507,0.00018888,2]
[399516569,1766425847095,-747.8093786,0.00018888,2]
[399516570,1766425847104,-642.94,0.00018888,2]
[399516571,1766425847113,-688.49839244,0.00018889,2]
[399516572,1766425847122,-251.11897888,0.00018889,2]
[399516573,1766425847131,-213.14631305,0.00018889,2]
[399516574,1766425847141,-155.80376723,0.000189,2]
[399516575,1766425847150,-1795.4,0.00018904,2]
[399516576,1766425847159,-300.0,0.00018999,2]
[399516577,1766425847168,-300.0,0.00018999,2]
[399516578,1766425847177,-89369.69229523,0.00019,2]
[399516579,1766425847186,-89369.69229523,0.00019,2]
[399516580,1766425847199,-162.24607065,0.00019,2]
[399516581,1766425847211,-1630.00561313,0.00019,2]
[399516582,1766425847221,-300.0,0.00019,2]
[399516583,1766425847230,-150.0,0.00019,2]
[399516584,1766425847239,-150.0,0.00019,2]
[399516585,1766425847248,-150.0,0.00019,2]
[399516586,1766425847257,-7000.0,0.00019,2]
[399516587,1766425847267,-356.89133829,0.0001901,7]
[399516588,1766425847278,-500.0,0.00019088,3]
[399516589,1766425847288,-200.0,0.00019137,2]
[399516590,1766425847297,-150.0,0.00019143,2]
[399516591,1766425847307,-11527.4878676,0.00019155,2]
[399516592,1766425847316,-2500.0,0.00019164,2]
[399516593,1766425847326,-2500.0,0.00019164,2]
[399516594,1766425847335,-300.0,0.00019167,2]
[399516595,1766425847344,-300.0,0.00019167,2]
[399516596,1766425847353,-56177.057793,0.00019168,2]
[399516597,1766425847365,-300.0,0.00019177,2]
[399516598,1766425847374,-300.0,0.00019177,2]
[399516599,1766425847383,-1795.4,0.00019178,2]
[399516600,1766425847394,-715.0,0.00019178,2]
[399516601,1766425847403,-20061.77,0.00019178,2]
[399516602,1766425847412,-632.39,0.00019178,2]
[399516603,1766425847421,-150.0,0.00019178,2]
[399516604,1766425847430,-544.45,0.00019212,2]
[399516605,1766425847439,-556.25,0.00019212,2]
[399516606,1766425847449,-2477.8305832,0.00019228,2]
[399516607,1766425847458,-2448.11732862,0.00019249,2]
[399516608,1766425847469,-150.0,0.00019333,4]
[399516609,1766425847479,-150.0,0.00019333,4]
[399516610,1766425847489,-150.0,0.00019333,4]
[399516611,1766425847499,-150.0,0.00019429,4]
[399516612,1766425847510,-713.97283296,0.00019437,2]
[399516613,1766425847521,-260.4103811,0.00019437,2]
[399516614,1766425847530,-1000.0,0.00019438,2]
[399516615,1766425847539,-1795.4,0.00019452,2]
[399516616,1766425847548,-544.45,0.00019486,2]
[399516617,1766425847558,-556.25,0.00019486,2]
[399516618,1766425847569,-150.0,0.000195,4]
[399516619,1766425847579,-150.30615582,0.00019519,5]
[399516620,1766425847588,-154.23,0.00019619,2]
[399516621,1766425847598,-280.45,0.00019624,2]
[399516622,1766425847608,-2572.130214,0.00019642,2]
[399516623,1766425847618,-12534.795902,0.00019652,2]
[399516624,1766425847628,-150.0,0.00019667,4]
[399516625,1766425847637,-200.0,0.00019685,2]
[399516626,1766425847646,-1858.30613246,0.00019712,2]
[399516627,1766425848629,-971.81328667,0.00016544,2]
[399516628,1766425848683,-1028.18671333,0.00016544,2]
[399516629,1766425848693,-2000.0,0.00016544,2]
[399516630,1766425848703,-2000.0,0.00016544,2]
[399516631,1766425848714,-2000.0,0.00016544,2]
[399516632,1766425848725,-2000.0,0.00016544,2]
[399516633,1766425848737,-1141.69386754,0.00019712,2]
[399516634,1766425848748,-3000.0,0.00019712,2]
[399516635,1766425848757,-150.0,0.00019714,4]
[399516636,1766425848768,-151.66355271,0.00019715,2]
[399516637,1766425848778,-552.8787348,0.00019725,2]
[399516638,1766425848788,-250.0,0.00019726,2]
[399516639,1766425848798,-900.0,0.00019726,2]
[399516640,1766425848808,-544.45,0.0001976,2]
[399516641,1766425848818,-226.56,0.0001976,2]
[399516642,1766425848828,-1600.0,0.00019761,2]
[399516643,1766425848838,-154.23,0.0001981,2]
[399516644,1766425848847,-158.9,0.00019829,2]
[399516645,1766425848857,-9547.49815795,0.0001995,15]
[399516646,1766425848867,-158.89298326,0.00019973,2]
[399516647,1766425848878,-740.38982778,0.00019985,2]
[399516648,1766425848888,-270.0455652,0.00019985,2]
[399516649,1766425848899,-300.0,0.00019999,2]
[399516650,1766425848909,-156.00450993,0.0002,4]
[399516651,1766425848918,-10878.84743007,0.0002,2]
[399516652,1766425848928,-1528.03867543,0.0002,2]
[399516653,1766425848939,-1460.52999165,0.0002,5]
[399516654,1766425848948,-8270.88660459,0.0002,2]
[399516655,1766425848958,-6395.43945233,0.0002,5]
[399516656,1766425849044,-307.97656556,0.0002,5]
[399516657,1766425849056,-1397.18855336,0.0002,5]
[399516658,1766425849067,-2532.75942844,0.0002,5]
[399516659,1766425849094,-23642.87750596,0.0002,5]
[399516660,1766425849118,-21025.12780652,0.0002,5]
[399516661,1766425849130,-371.36820323,0.0002,5]
[399516662,1766425849141,-330717.32823311,0.0002,5]
[399516663,1766425849152,-1952.71917194,0.0002,5]
[399516664,1766425849720,-6437.02902888,0.0002,5]
[399516665,1766425849744,-2950.711,0.0002,5]
[399516666,1766425849767,-322.22619774,0.0002,5]
[399516668,1766426418150,153.09,8.036e-05,2]
[399516669,1766426418353,153.09,8.706e-05,2]
[399516670,1766426418625,153.09,9.375e-05,2]
[399516677,1766427032411,-153.09,0.00010045,2]
[399516678,1766427032425,-153.09,0.00010715,2]
[399516679,1766427032439,-300.0,0.00011048,2]
[399516680,1766427032453,-300.0,0.00011048,2]
[399516681,1766427032467,-1200.0,0.00011048,2]
[399516682,1766427032481,-195.0,0.00011049,2]
[399516683,1766427032495,-300.0,0.00011049,2]
[399516684,1766427032508,-250.0,0.00011049,2]
[399516687,1766427032522,-149.52572044,0.00011049,2]
[399516689,1766427032556,-45.47427956,0.00011049,2]
[399516691,1766427032569,-654.88722388,0.00011327,2]
[399516693,1766427032584,-9123.7316167,0.00011327,2]
[399516698,1766427032625,-1683.19013442,0.00011327,2]
[399516700,1766427032637,-153.09,0.00011384,2]
[399516703,1766427032650,-3075.1,0.00011507,2]
[399516706,1766427032667,-41.26986558,0.00011548,2]
[399516709,1766427032684,-258.73013442,0.00011548,2]
[399516711,1766427032699,-8.26986537,0.00011549,2]
[399516714,1766427032721,-410.23013463,0.00011549,2]
[399516717,1766427032735,-454.451241,0.00011679,2]
[399516720,1766427032753,-4172.478759,0.00011679,2]
[399516722,1766427032768,-200.0,0.00011727,2]
[399516725,1766427032781,-315.44972641,0.00011993,2]
[399516727,1766427032797,-366.13195705,0.00011993,2]
[399516731,1766427032829,-316.90885212,0.00011993,2]
[399516732,1766427032846,-153.09,0.00012054,2]
[399516733,1766427032860,-415.84478433,0.0001214,2]
[399516734,1766427032877,-4.15521567,0.0001214,2]
[399516735,1766427032892,-548.90606813,0.00012148,2]
[399516736,1766427032908,-1051.09393187,0.00012148,2]
[399516737,1766427032923,-1200.0,0.00012153,2]
[399516738,1766427032936,-166.66,0.00012362,2]
[399516739,1766427032950,-150.0,0.00012362,2]
[399516740,1766427032964,-3645.32157721,0.00012459,2]
[399516741,1766427032977,-176.77373823,0.00012459,2]
[399516742,1766427032991,-267.16580959,0.00012551,2]
[399516743,1766427033004,-150.0,0.00012551,2]
[399516744,1766427033017,-18964.68589544,0.00012552,2]
[399516745,1766427033036,-23379.87938135,0.00012552,2]
[399516746,1766427033052,-801.95128758,0.00012552,2]
[399516747,1766427038329,-731.00000004,0.00012552,2]
[399516748,1766427038384,-973.27426277,0.00012552,2]
[399516749,1766427038400,-488.44644326,0.00012552,2]
[399516750,1766427038439,-813.8673398,0.00012552,2]
[399516751,1766427038451,-469908.03477503,0.00012552,2]
[399516752,1766427038462,-734.20333733,0.00012552,2]
[399516753,1766427038495,-2402.84123765,0.00012552,2]
[399516754,1766427038507,-107180.4708214,0.00012552,2]
[399516755,1766427038519,-540.29243532,0.00012552,2]
[399516756,1766427038530,-993.34152341,0.00012552,2]
[399516763,1766427040397,-9927.6567,0.00012552,2]
[399516767,1766427040453,-1267.82664481,0.00012552,2]
[399516768,1766427040464,-1129.1994,0.00012552,2]
[399516769,1766427040476,-5372.83288778,0.00012552,2]
[399516770,1766427040516,-530.6,0.00012552,2]
[399516771,1766427040529,-27249.48216851,0.00012552,2]
[399516772,1766427040542,-509.65562623,0.00012552,2]
[399516773,1766427040558,-1668.2263106,0.00012552,2]
[399516774,1766427040570,-16748.5711539,0.00012552,2]
[399516775,1766427040586,-59417.32548179,0.00012552,2]
[399516776,1766427040599,-865.0,0.00012552,2]
[399516777,1766427040611,-1421.76578285,0.00012552,2]
[399516778,1766427040729,-7142.45768139,0.00012552,2]
[399516779,1766427040742,-374.3586876,0.00012552,2]
[399516780,1766427040788,-238462.75273416,0.00012552,2]
[399516781,1766427040797,-931.82821884,0.00012559,2]
[399516782,1766427040808,-2756.9178,0.00012559,2]
[399516783,1766427040817,-2650.5986,0.00012559,2]